[Event "Esbjerg Efterår 2021 - Esbjergmesterskabet"]
[Site "Esbjerg, Denmark"]
[Date "2021.10.23"]
[Round "4.3"]
[White "Bønnelykke, Ole"]
[Black "Eriksson, Christian Altenburg"]
[Result "0-1"]
[TimeControl "1.-3. 20 min + 5 sek, 4.-7. 90 min + 30 sek"]
[WhiteElo "1991"]
[BlackElo "2135"]

1. e4 {[%clk 01:30:53]} {[%emt 00:00:06]} c5 {[%clk 01:30:53]} {[%emt
00:00:08]} 2. Nc3 {[%clk 01:31:09]} {[%emt 00:00:14]} Nc6 {[%clk 01:31:11]}
{[%emt 00:00:12]} 3. g3 {[%clk 01:31:28]} {[%emt 00:00:11]} g6 {[%clk
01:31:20]} {[%emt 00:00:20]} 4. Bg2 {[%clk 01:31:51]} {[%emt 00:00:07]} Bg7
{[%clk 01:31:43]} {[%emt 00:00:07]} 5. d3 {[%clk 01:32:13]} {[%emt 00:00:08]}
d6 {[%clk 01:31:45]} {[%emt 00:00:27]} 6. Be3 {[%clk 01:32:30]} {[%emt
00:00:13]} e5 {[%clk 01:31:41]} {[%emt 00:00:35]} 7. Qd2 {[%clk 01:32:44]}
{[%emt 00:00:17]} Nge7 {[%clk 01:31:39]} {[%emt 00:00:31]} 8. Bh6 {[%clk
01:32:45]} {[%emt 00:00:29]} Bxh6 {[%clk 01:30:53]} {[%emt 00:01:16]} 9. Qxh6
{[%clk 01:33:05]} {[%emt 00:00:10]} Nd4 {[%clk 01:31:11]} {[%emt 00:00:12]} 10.
Qd2 {[%clk 01:32:17]} {[%emt 00:01:18]} Be6 {[%clk 01:30:30]} {[%emt 00:01:11]}
11. Nge2 {[%clk 01:31:40]} {[%emt 00:01:07]} Qd7 {[%clk 01:20:11]} {[%emt
00:10:50]} 12. f4 {[%clk 01:30:41]} {[%emt 00:01:28]} f6 {[%clk 01:14:57]}
{[%emt 00:05:45]} 13. O-O {[%clk 01:26:01]} {[%emt 00:05:09]} O-O-O {[%clk
01:10:40]} {[%emt 00:04:48]} 14. Nd5 {[%clk 01:24:19]} {[%emt 00:02:12]} Nxd5
{[%clk 00:59:06]} {[%emt 00:12:05]} 15. exd5 {[%clk 01:24:18]} {[%emt
00:00:30]} Bf5 {[%clk 00:58:07]} {[%emt 00:01:28]} 16. Nxd4 {[%clk 01:18:37]}
{[%emt 00:06:11]} cxd4 {[%clk 00:55:36]} {[%emt 00:03:02]} 17. c4 {[%clk
01:15:24]} {[%emt 00:03:44]} dxc3 {[%clk 00:51:58]} {[%emt 00:04:08]} 18. bxc3
{[%clk 01:15:14]} {[%emt 00:00:39]} Qb5 {[%clk 00:50:53]} {[%emt 00:01:35]} 19.
Be4 {[%clk 01:12:33]} {[%emt 00:03:11]} Qc5+ {[%clk 00:48:43]} {[%emt
00:02:41]} 20. d4 {[%clk 01:09:06]} {[%emt 00:03:57]} Qc4 {[%clk 00:47:05]}
{[%emt 00:02:07]} 21. Bxf5+ {[%clk 01:05:29]} {[%emt 00:04:07]} gxf5 {[%clk
00:47:27]} {[%emt 00:00:08]} 22. fxe5 {[%clk 01:04:40]} {[%emt 00:01:20]} dxe5
{[%clk 00:44:40]} {[%emt 00:03:16]} 23. Rxf5 {[%clk 00:58:53]} {[%emt
00:06:17]} Rxd5 {[%clk 00:42:37]} {[%emt 00:02:34]} 24. Rxf6 {[%clk 00:52:25]}
{[%emt 00:06:57]} exd4 {[%clk 00:32:53]} {[%emt 00:10:15]} 25. cxd4 {[%clk
00:48:16]} {[%emt 00:04:39]} Qxd4+ {[%clk 00:31:44]} {[%emt 00:01:39]} 26. Qxd4
{[%clk 00:48:34]} {[%emt 00:00:12]} Rxd4 {[%clk 00:32:12]} {[%emt 00:00:02]} 27.
Rc1+ {[%clk 00:47:21]} {[%emt 00:01:42]} Kb8 {[%clk 00:32:22]} {[%emt
00:00:20]} 28. Rf7 {[%clk 00:46:29]} {[%emt 00:01:22]} Rd2 {[%clk 00:28:52]}
{[%emt 00:04:00]} 29. Rcc7 {[%clk 00:44:35]} {[%emt 00:02:24]} Rb2 {[%clk
00:28:02]} {[%emt 00:01:20]} 30. Rxh7 {[%clk 00:42:14]} {[%emt 00:02:50]} Rd8
{[%clk 00:28:06]} {[%emt 00:00:27]} 31. Rcf7 {[%clk 00:41:03]} {[%emt
00:01:41]} a5 {[%clk 00:23:14]} {[%emt 00:05:23]} 32. g4 {[%clk 00:37:39]}
{[%emt 00:03:54]} Rd1+ {[%clk 00:21:37]} {[%emt 00:02:06]} 33. Rf1 {[%clk
00:37:52]} {[%emt 00:00:17]} Rdd2 {[%clk 00:21:57]} {[%emt 00:00:11]} 34. Ra1
{[%clk 00:29:23]} {[%emt 00:08:58]} Rg2+ {[%clk 00:21:00]} {[%emt 00:01:27]} 35.
Kh1 {[%clk 00:27:42]} {[%emt 00:02:10]} Rxg4 {[%clk 00:20:51]} {[%emt
00:00:40]} 36. Rh3 {[%clk 00:25:59]} {[%emt 00:02:12]} Rgg2 {[%clk 00:19:05]}
{[%emt 00:02:16]} 37. a3 {[%clk 00:23:49]} {[%emt 00:02:41]} Ka7 {[%clk
00:19:02]} {[%emt 00:00:32]} 38. Rg1 {[%clk 00:21:56]} {[%emt 00:02:22]} Rgc2
{[%clk 00:18:54]} {[%emt 00:00:39]} 39. Rg5 {[%clk 00:21:25]} {[%emt 00:01:01]}
b6 {[%clk 00:17:48]} {[%emt 00:01:37]} 40. Rg7+ {[%clk 00:17:11]} {[%emt
00:04:44]} Ka6 {[%clk 00:17:53]} {[%emt 00:00:25]} 41. Rg4 {[%clk 00:15:22]}
{[%emt 00:02:17]} Ra2 {[%clk 00:16:53]} {[%emt 00:01:31]} 42. Rg6 {[%clk
00:15:01]} {[%emt 00:00:51]} a4 {[%clk 00:14:45]} {[%emt 00:02:37]} 43. Rg4
{[%clk 00:14:13]} {[%emt 00:01:18]} b5 {[%clk 00:13:54]} {[%emt 00:01:22]} 44.
Rg7 {[%clk 00:12:53]} {[%emt 00:01:50]} Rc6 {[%clk 00:10:07]} {[%emt 00:04:17]}
45. Rf3 {[%clk 00:11:48]} {[%emt 00:01:34]} Rc1+ {[%clk 00:09:09]} {[%emt
00:01:30]} 46. Rg1 {[%clk 00:12:04]} {[%emt 00:00:13]} Rcc2 {[%clk 00:09:07]}
{[%emt 00:00:32]} 47. Rh3 {[%clk 00:11:33]} {[%emt 00:01:00]} Rab2 {[%clk
00:08:07]} {[%emt 00:01:31]} 48. Rh7 {[%clk 00:09:30]} {[%emt 00:02:33]} Rc6
{[%clk 00:07:20]} {[%emt 00:01:16]} 49. Rhg7 {[%clk 00:07:47]} {[%emt
00:02:14]} Rb3 {[%clk 00:06:32]} {[%emt 00:01:18]} 50. Ra1 {[%clk 00:06:54]}
{[%emt 00:01:22]} Rcc3 {[%clk 00:06:28]} {[%emt 00:00:35]} 51. h4 {[%clk
00:05:33]} {[%emt 00:01:50]} Rh3+ {[%clk 00:05:59]} {[%emt 00:01:00]} 52. Kg2
{[%clk 00:05:41]} {[%emt 00:00:21]} Rxh4 {[%clk 00:06:26]} {[%emt 00:00:04]} 53.
Rg3 {[%clk 00:05:20]} {[%emt 00:00:51]} Rc4 {[%clk 00:05:03]} {[%emt 00:01:53]}
54. Rf3 {[%clk 00:04:43]} {[%emt 00:01:07]} Rc2+ {[%clk 00:04:55]} {[%emt
00:00:38]} 55. Kg3 {[%clk 00:04:42]} {[%emt 00:00:30]} Rcc3 {[%clk 00:05:06]}
{[%emt 00:00:20]} 56. Rxc3 {[%clk 00:04:52]} {[%emt 00:00:20]} Rxc3+ {[%clk
00:05:35]} {[%emt 00:00:02]} 57. Kf2 {[%clk 00:05:02]} {[%emt 00:00:18]} Kb6
{[%clk 00:04:39]} {[%emt 00:01:27]} 58. Ke2 {[%clk 00:05:11]} {[%emt 00:00:21]}
Kc5 {[%clk 00:05:03]} {[%emt 00:00:06]} 59. Kd2 {[%clk 00:05:19]} {[%emt
00:00:22]} Kc4 {[%clk 00:05:14]} {[%emt 00:00:20]} 60. Kd1 {[%clk 00:03:56]}
{[%emt 00:01:52]} Rh3 {[%clk 00:05:06]} {[%emt 00:00:39]} 61. Kd2 {[%clk
00:03:39]} {[%emt 00:00:48]} Kd4 {[%clk 00:04:55]} {[%emt 00:00:41]} 62. Kc2
{[%clk 00:02:38]} {[%emt 00:01:31]} Rh2+ {[%clk 00:04:47]} {[%emt 00:00:38]} 63.
Kd1 {[%clk 00:01:31]} {[%emt 00:01:37]} Rh1+ {[%clk 00:04:52]} {[%emt
00:00:25]} 64. Kd2 {[%emt 00:00:07]} Ke5 {[%emt 00:00:10]} 0-1

[Event "Esbjerg Efterår 2021 - Esbjergmesterskabet"]
[Site "Esbjerg, Denmark"]
[Date "2021.10.23"]
[Round "4.4"]
[White "Jarlnæs, Erik"]
[Black "Husum, Lars"]
[Result "1/2-1/2"]
[TimeControl "1.-3. 20 min + 5 sek, 4.-7. 90 min + 30 sek"]
[WhiteElo "1952"]
[BlackElo "1876"]

1. e4 {[%clk 01:30:56]} {[%emt 00:00:02]} e5 {[%clk 01:30:41]} {[%emt
00:00:20]} 2. Nf3 {[%clk 01:31:07]} {[%emt 00:00:18]} Nf6 {[%clk 01:31:00]}
{[%emt 00:00:11]} 3. Nxe5 {[%clk 01:29:37]} {[%emt 00:02:00]} Nc6 {[%clk
01:30:52]} {[%emt 00:00:39]} 4. Nxc6 {[%clk 01:13:59]} {[%emt 00:16:08]} dxc6
{[%clk 01:30:55]} {[%emt 00:00:27]} 5. d3 {[%clk 01:12:51]} {[%emt 00:01:38]}
Bc5 {[%clk 01:31:02]} {[%emt 00:00:23]} 6. Be3 {[%clk 01:04:47]} {[%emt
00:08:34]} Bxe3 {[%clk 01:30:28]} {[%emt 00:01:04]} 7. fxe3 {[%clk 01:05:13]}
{[%emt 00:00:03]} Ng4 {[%clk 01:30:43]} {[%emt 00:00:16]} 8. Qf3 {[%clk
01:00:57]} {[%emt 00:04:46]} Qg5 {[%clk 01:30:42]} {[%emt 00:00:31]} 9. Qf4
{[%clk 00:58:31]} {[%emt 00:02:55]} Qc5 {[%clk 01:29:55]} {[%emt 00:01:17]} 10.
Kd2 {[%clk 00:49:31]} {[%emt 00:09:31]} Qb4+ {[%clk 01:12:37]} {[%emt
00:17:48]} 11. Nc3 {[%clk 00:49:34]} {[%emt 00:00:27]} Qxb2 {[%clk 01:13:02]}
{[%emt 00:00:06]} 12. Rb1 {[%clk 00:49:48]} {[%emt 00:00:15]} Qa3 {[%clk
01:13:27]} {[%emt 00:00:05]} 13. Be2 {[%clk 00:45:31]} {[%emt 00:04:47]} Nf6
{[%clk 01:12:52]} {[%emt 00:01:04]} 14. Qxc7 {[%clk 00:42:49]} {[%emt
00:03:13]} O-O {[%clk 01:12:26]} {[%emt 00:00:56]} 15. Rhf1 {[%clk 00:21:31]}
{[%emt 00:21:49]} a6 {[%clk 01:00:11]} {[%emt 00:12:46]} 16. Qg3 {[%clk
00:18:53]} {[%emt 00:03:06]} Qe7 {[%clk 00:58:06]} {[%emt 00:02:35]} 17. e5
{[%clk 00:18:38]} {[%emt 00:00:46]} Nd7 {[%clk 00:56:21]} {[%emt 00:02:15]} 18.
d4 {[%clk 00:18:59]} {[%emt 00:00:09]} b5 {[%clk 00:46:50]} {[%emt 00:10:01]}
19. Bd3 {[%clk 00:17:20]} {[%emt 00:02:09]} Rd8 {[%clk 00:42:50]} {[%emt
00:04:30]} 20. Ne4 {[%clk 00:16:08]} {[%emt 00:01:42]} Nf8 {[%clk 00:37:04]}
{[%emt 00:06:16]} 21. Ng5 {[%clk 00:12:55]} {[%emt 00:03:43]} Be6 {[%clk
00:37:11]} {[%emt 00:00:23]} 22. Nxe6 {[%clk 00:12:55]} {[%emt 00:00:30]} Qxe6
{[%clk 00:36:53]} {[%emt 00:00:48]} 23. Be4 {[%clk 00:12:00]} {[%emt 00:01:25]}
Ra7 {[%clk 00:35:36]} {[%emt 00:01:48]} 24. Rb2 {[%clk 00:07:17]} {[%emt
00:05:13]} Ng6 {[%clk 00:32:35]} {[%emt 00:03:30]} 25. Bxg6 {[%clk 00:07:20]}
{[%emt 00:00:27]} hxg6 {[%clk 00:32:48]} {[%emt 00:00:17]} 26. Qf4 {[%clk
00:07:08]} {[%emt 00:00:42]} Re7 {[%clk 00:31:35]} {[%emt 00:01:43]} 27. Kc1
{[%clk 00:06:56]} {[%emt 00:00:42]} a5 {[%clk 00:30:12]} {[%emt 00:01:52]} 28.
Rd1 {[%clk 00:06:37]} {[%emt 00:00:50]} a4 {[%clk 00:30:04]} {[%emt 00:00:38]}
29. Rd3 {[%clk 00:05:35]} {[%emt 00:01:32]} Qc4 {[%clk 00:28:39]} {[%emt
00:01:55]} 30. Kd2 {[%clk 00:04:38]} {[%emt 00:01:26]} Red7 {[%clk 00:26:46]}
{[%emt 00:02:23]} 31. c3 {[%clk 00:03:41]} {[%emt 00:01:28]} Qe6 {[%clk
00:23:32]} {[%emt 00:03:45]} 32. e4 {[%clk 00:03:28]} {[%emt 00:00:44]} Qe7
{[%clk 00:22:07]} {[%emt 00:01:54]} 33. Rh3 {[%clk 00:02:51]} {[%emt 00:01:06]}
Re8 {[%clk 00:10:02]} {[%emt 00:12:37]} 34. Kc1 {[%clk 00:03:15]} {[%emt
00:00:05]} g5 {[%clk 00:08:59]} {[%emt 00:01:33]} 35. Qf3 {[%clk 00:03:04]}
{[%emt 00:00:41]} g6 {[%clk 00:08:33]} {[%emt 00:00:55]} 36. Rg3 {[%clk
00:03:17]} {[%emt 00:00:18]} c5 {[%clk 00:05:20]} {[%emt 00:03:43]} 37. Qe3
{[%clk 00:03:36]} {[%emt 00:00:11]} cxd4 {[%clk 00:05:34]} {[%emt 00:00:16]} 38.
cxd4 {[%clk 00:03:59]} {[%emt 00:00:08]} Rc8+ {[%clk 00:04:30]} {[%emt
00:01:33]} 39. Rc2 {[%clk 00:02:48]} {[%emt 00:01:41]} Rxc2+ {[%clk 00:04:40]}
{[%emt 00:00:20]} 40. Kxc2 {[%clk 00:03:16]} {[%emt 00:00:01]} Qb4 {[%clk
00:04:55]} {[%emt 00:00:15]} 41. Qc3 {[%clk 00:02:19]} {[%emt 00:01:29]} Qe7
{[%clk 00:05:02]} {[%emt 00:00:23]} 42. Qb2 {[%clk 00:02:14]} {[%emt 00:00:34]}
Rc7+ {[%clk 00:04:55]} {[%emt 00:00:37]} 43. Rc3 {[%clk 00:02:35]} {[%emt
00:00:09]} b4 {[%clk 00:04:38]} {[%emt 00:00:45]} 44. Rxc7 {[%clk 00:02:37]}
{[%emt 00:00:30]} Qxc7+ {[%clk 00:05:03]} {[%emt 00:00:05]} 45. Kd3 {[%clk
00:02:46]} {[%emt 00:00:20]} Qb6 {[%clk 00:05:16]} {[%emt 00:00:18]} 46. d5
{[%clk 00:02:40]} {[%emt 00:00:36]} Qb5+ {[%clk 00:04:45]} {[%emt 00:01:01]} 47.
Kd4 {[%clk 00:02:53]} {[%emt 00:00:16]} b3 {[%clk 00:04:44]} {[%emt 00:00:32]}
48. axb3 {[%clk 00:02:59]} {[%emt 00:00:24]} Qb4+ {[%clk 00:04:56]} {[%emt
00:00:17]} 49. Kd3 {[%clk 00:02:16]} {[%emt 00:01:14]} axb3 {[%clk 00:05:13]}
{[%emt 00:00:13]} 50. d6 {[%clk 00:01:53]} {[%emt 00:00:53]} Qb5+ {[%clk
00:05:17]} {[%emt 00:00:26]} 51. Kd4 {[%clk 00:01:50]} {[%emt 00:00:33]} Qb4+
{[%clk 00:05:34]} {[%emt 00:00:13]} 52. Kd3 {[%clk 00:02:07]} {[%emt 00:00:14]}
Qb5+ {[%clk 00:05:40]} {[%emt 00:00:23]} 53. Kd4 {[%clk 00:02:13]} {[%emt
00:00:23]} Qb4+ {[%clk 00:06:01]} {[%emt 00:00:09]} 1/2-1/2

[Event "Esbjerg Efterår 2021 - Esbjergmesterskabet"]
[Site "Esbjerg, Denmark"]
[Date "2021.10.23"]
[Round "4.5"]
[White "Bekmuhanov, Sauran"]
[Black "Jensen, Lars"]
[Result "1/2-1/2"]
[TimeControl "1.-3. 20 min + 5 sek, 4.-7. 90 min + 30 sek"]
[WhiteElo "1623"]
[BlackElo "1546"]

1. e4 {[%clk 01:30:06]} {[%emt 00:00:54]} d6 {[%clk 01:30:52]} {[%emt
00:00:08]} 2. d4 {[%clk 01:30:28]} {[%emt 00:00:08]} Nf6 {[%clk 01:31:16]}
{[%emt 00:00:06]} 3. Nc3 {[%clk 01:30:39]} {[%emt 00:00:19]} g6 {[%clk
01:31:32]} {[%emt 00:00:13]} 4. Nf3 {[%clk 01:30:54]} {[%emt 00:00:15]} Bg7
{[%clk 01:31:57]} {[%emt 00:00:05]} 5. h3 {[%clk 01:30:23]} {[%emt 00:01:01]}
Nc6 {[%clk 01:31:52]} {[%emt 00:00:35]} 6. Be3 {[%clk 01:30:36]} {[%emt
00:00:18]} O-O {[%clk 01:29:34]} {[%emt 00:02:47]} 7. Qd2 {[%clk 01:30:46]}
{[%emt 00:00:20]} e5 {[%clk 01:28:05]} {[%emt 00:02:00]} 8. dxe5 {[%clk
01:30:46]} {[%emt 00:00:29]} dxe5 {[%clk 01:27:51]} {[%emt 00:00:44]} 9. O-O-O
{[%clk 01:30:51]} {[%emt 00:00:26]} Qxd2+ {[%clk 01:26:22]} {[%emt 00:01:59]}
10. Rxd2 {[%clk 01:30:53]} {[%emt 00:00:28]} a6 {[%emt 00:00:37]} 11. Bc4
{[%clk 01:30:16]} {[%emt 00:00:38]} Rb8 {[%clk 01:16:42]} {[%emt 00:10:32]} 12.
a4 {[%clk 01:28:46]} {[%emt 00:01:59]} h6 {[%clk 01:11:26]} {[%emt 00:05:46]}
13. Rhd1 {[%clk 01:27:02]} {[%emt 00:02:14]} Ne8 {[%clk 01:10:34]} {[%emt
00:01:22]} 14. Bc5 {[%clk 01:27:03]} {[%emt 00:00:29]} Nd6 {[%clk 01:05:39]}
{[%emt 00:05:25]} 15. Bxd6 {[%clk 01:27:11]} {[%emt 00:00:22]} cxd6 {[%clk
01:06:07]} {[%emt 00:00:02]} 16. Rxd6 {[%clk 01:27:28]} {[%emt 00:00:12]} Kh7
{[%clk 01:05:07]} {[%emt 00:01:32]} 17. Nd5 {[%clk 01:25:46]} {[%emt 00:02:12]}
Be6 {[%clk 00:56:54]} {[%emt 00:08:42]} 18. Nb6 {[%clk 01:25:36]} {[%emt
00:00:41]} Bxc4 {[%clk 00:56:08]} {[%emt 00:01:16]} 19. Nxc4 {[%clk 01:25:59]}
{[%emt 00:00:07]} f5 {[%clk 00:53:44]} {[%emt 00:02:54]} 20. exf5 {[%clk
01:17:40]} {[%emt 00:08:48]} Rxf5 {[%clk 00:51:45]} {[%emt 00:02:29]} 21. R1d2
{[%clk 01:16:13]} {[%emt 00:01:56]} Re8 {[%clk 00:37:14]} {[%emt 00:15:02]} 22.
Rd7 {[%clk 01:15:03]} {[%emt 00:01:39]} Rf4 {[%clk 00:37:10]} {[%emt 00:00:35]}
23. Nd6 {[%clk 01:14:40]} {[%emt 00:00:53]} Re6 {[%clk 00:36:41]} {[%emt
00:00:59]} 24. Rxb7 {[%clk 01:14:11]} {[%emt 00:00:59]} e4 {[%clk 00:35:48]}
{[%emt 00:01:23]} 25. Ne1 {[%clk 01:12:05]} {[%emt 00:02:35]} e3 {[%clk
00:30:35]} {[%emt 00:05:43]} 26. fxe3 {[%clk 01:11:46]} {[%emt 00:00:49]} Rxa4
{[%clk 00:30:57]} {[%emt 00:00:09]} 27. Kd1 {[%clk 01:10:04]} {[%emt 00:02:12]}
Rxe3 {[%clk 00:30:18]} {[%emt 00:01:08]} 28. Re2 {[%clk 01:04:55]} {[%emt
00:05:38]} Rxe2 {[%clk 00:23:58]} {[%emt 00:06:50]} 29. Kxe2 {[%clk 01:05:08]}
{[%emt 00:00:18]} Kg8 {[%clk 00:24:00]} {[%emt 00:00:27]} 30. Nf3 {[%clk
01:01:13]} {[%emt 00:04:26]} Ra5 {[%clk 00:18:52]} {[%emt 00:05:37]} 31. Rb6
{[%clk 00:58:39]} {[%emt 00:03:05]} Ne5 {[%clk 00:18:29]} {[%emt 00:00:45]} 32.
Nxe5 {[%clk 00:56:40]} {[%emt 00:02:38]} Rxe5+ {[%clk 00:18:56]} {[%emt
00:00:02]} 33. Kf3 {[%clk 00:53:54]} {[%emt 00:03:15]} a5 {[%clk 00:15:49]}
{[%emt 00:03:39]} 34. Rb5 {[%clk 00:53:42]} {[%emt 00:00:42]} Re6 {[%clk
00:15:49]} {[%emt 00:00:29]} 35. Ne4 {[%clk 00:53:43]} {[%emt 00:00:27]} a4
{[%clk 00:14:38]} {[%emt 00:01:43]} 36. Ra5 {[%clk 00:53:07]} {[%emt 00:01:06]}
Bxb2 {[%clk 00:14:37]} {[%emt 00:00:31]} 37. Rxa4 {[%clk 00:53:15]} {[%emt
00:00:21]} Rc6 {[%clk 00:14:46]} {[%emt 00:00:21]} 38. c4 {[%clk 00:52:43]}
{[%emt 00:01:02]} Kf7 {[%clk 00:14:17]} {[%emt 00:00:59]} 39. c5 {[%clk
00:51:39]} {[%emt 00:01:34]} Ke6 {[%emt 00:01:59]} 40. Ra7 {[%clk 00:50:22]}
{[%emt 00:00:27]} Bd4 {[%clk 00:11:57]} {[%emt 00:02:41]} 41. Rh7 {[%clk
00:49:13]} {[%emt 00:01:39]} h5 {[%clk 00:11:46]} {[%emt 00:00:42]} 42. g4
{[%clk 00:48:40]} {[%emt 00:01:02]} hxg4+ {[%clk 00:11:06]} {[%emt 00:01:09]}
43. Kxg4 {[%clk 00:47:58]} {[%emt 00:01:12]} Bxc5 {[%clk 00:09:52]} {[%emt
00:01:45]} 44. Rg7 {[%clk 00:45:44]} {[%emt 00:02:44]} Ke5 {[%clk 00:06:12]}
{[%emt 00:04:10]} 45. Nxc5 {[%clk 00:45:18]} {[%emt 00:00:56]} Rxc5 {[%clk
00:06:33]} {[%emt 00:00:08]} 46. Rxg6 {[%clk 00:45:41]} {[%emt 00:00:08]} Rc1
{[%clk 00:04:02]} {[%emt 00:03:01]} 47. h4 {[%clk 00:45:05]} {[%emt 00:01:06]}
Rg1+ {[%clk 00:03:28]} {[%emt 00:01:05]} 48. Kh5 {[%clk 00:45:12]} {[%emt
00:00:22]} Rh1 {[%clk 00:03:52]} {[%emt 00:00:05]} 49. Kg5 {[%clk 00:44:15]}
{[%emt 00:01:28]} Rg1 {[%clk 00:03:35]} {[%emt 00:00:47]} 50. Kh6 {[%clk
00:44:29]} {[%emt 00:00:16]} Rh1 {[%clk 00:04:03]} {[%emt 00:00:03]} 51. h5
{[%clk 00:44:37]} {[%emt 00:00:22]} Kf5 {[%clk 00:04:21]} {[%emt 00:00:12]} 52.
Rg5+ {[%clk 00:44:11]} {[%emt 00:00:55]} Kf6 {[%clk 00:04:42]} {[%emt
00:00:09]} 53. Rg2 {[%clk 00:44:20]} {[%emt 00:00:21]} Kf7 {[%clk 00:03:58]}
{[%emt 00:01:14]} 54. Rf2+ {[%clk 00:41:10]} {[%emt 00:03:40]} Kg8 {[%clk
00:04:15]} {[%emt 00:00:13]} 55. Rf5 {[%clk 00:40:00]} {[%emt 00:01:40]} Rg1
{[%clk 00:02:35]} {[%emt 00:02:10]} 56. Ra5 {[%clk 00:40:12]} {[%emt 00:00:19]}
Rh1 {[%clk 00:02:36]} {[%emt 00:00:28]} 57. Ra8+ {[%clk 00:40:30]} {[%emt
00:00:12]} Kf7 {[%clk 00:03:02]} {[%emt 00:00:04]} 58. Ra7+ {[%clk 00:36:36]}
{[%emt 00:04:23]} Kg8 {[%clk 00:03:30]} {[%emt 00:00:03]} 59. Rg7+ {[%clk
00:36:46]} {[%emt 00:00:20]} Kh8 {[%clk 00:03:43]} {[%emt 00:00:17]} 60. Rg5
{[%clk 00:37:10]} {[%emt 00:00:06]} Rh2 {[%clk 00:03:50]} {[%emt 00:00:23]} 61.
Kg6 {[%clk 00:37:19]} {[%emt 00:00:21]} Rh1 {[%clk 00:03:26]} {[%emt 00:00:53]}
62. h6 {[%clk 00:37:30]} {[%emt 00:00:15]} Rh2 {[%clk 00:03:30]} {[%emt
00:00:31]} 63. Rf5 {[%clk 00:35:42]} {[%emt 00:02:19]} Rg2+ {[%clk 00:03:31]}
{[%emt 00:00:28]} 64. Kf7 {[%clk 00:35:05]} {[%emt 00:01:07]} Kh7 {[%clk
00:03:11]} {[%emt 00:00:51]} 65. Rf6 {[%clk 00:35:14]} {[%emt 00:00:21]} Rh2
{[%clk 00:03:20]} {[%emt 00:00:21]} 66. Kf8 {[%clk 00:30:55]} {[%emt 00:04:49]}
Rxh6 {[%emt 00:01:34]} 67. Rxh6+ {[%emt 00:00:27]} Kxh6 {[%emt 00:00:05]}
1/2-1/2

[Event "Esbjerg Efterår 2021 - Esbjergmesterskabet"]
[Site "Esbjerg, Denmark"]
[Date "2021.10.23"]
[Round "4.6"]
[White "Pedersen, Lars Wilton"]
[Black "Dybdal, Frank"]
[Result "1/2-1/2"]
[TimeControl "1.-3. 20 min + 5 sek, 4.-7. 90 min + 30 sek"]
[WhiteElo "1991"]
[BlackElo "1687"]

1. d4 {[%clk 01:30:44]} {[%emt 00:00:15]} f5 {[%clk 01:28:04]} {[%emt
00:02:56]} 2. g3 {[%clk 01:27:49]} {[%emt 00:03:25]} Nf6 {[%clk 01:27:59]}
{[%emt 00:00:35]} 3. Bg2 {[%clk 01:28:12]} {[%emt 00:00:06]} d6 {[%clk
01:28:13]} {[%emt 00:00:17]} 4. Nf3 {[%clk 01:28:25]} {[%emt 00:00:17]} g6
{[%clk 01:28:01]} {[%emt 00:00:41]} 5. O-O {[%clk 01:28:33]} {[%emt 00:00:23]}
Bg7 {[%clk 01:27:47]} {[%emt 00:00:44]} 6. c4 {[%clk 01:28:26]} {[%emt
00:00:37]} O-O {[%clk 01:27:17]} {[%emt 00:01:00]} 7. Nc3 {[%clk 01:24:25]}
{[%emt 00:04:30]} Na6 {[%clk 01:26:46]} {[%emt 00:01:02]} 8. Qc2 {[%clk
01:23:16]} {[%emt 00:01:38]} c5 {[%clk 01:25:48]} {[%emt 00:01:28]} 9. d5
{[%clk 01:23:00]} {[%emt 00:00:46]} Bd7 {[%clk 01:24:16]} {[%emt 00:02:03]} 10.
a3 {[%clk 01:16:33]} {[%emt 00:06:57]} Nc7 {[%clk 01:23:42]} {[%emt 00:01:03]}
11. b4 {[%clk 01:16:00]} {[%emt 00:01:03]} b6 {[%clk 01:20:01]} {[%emt
00:04:11]} 12. Bb2 {[%clk 01:13:34]} {[%emt 00:02:57]} Nce8 {[%clk 01:17:46]}
{[%emt 00:02:44]} 13. Rfe1 {[%clk 01:08:57]} {[%emt 00:05:07]} Qc8 {[%clk
01:13:06]} {[%emt 00:05:10]} 14. b5 {[%clk 01:08:00]} {[%emt 00:01:26]} f4
{[%clk 01:09:00]} {[%emt 00:04:37]} 15. Ng5 {[%clk 01:03:48]} {[%emt 00:04:42]}
Ng4 {[%clk 01:05:38]} {[%emt 00:03:52]} 16. Nd1 {[%clk 00:59:11]} {[%emt
00:05:08]} Ne5 {[%clk 01:03:46]} {[%emt 00:02:21]} 17. Ne6 {[%clk 00:55:14]}
{[%emt 00:04:27]} Bxe6 {[%clk 00:56:01]} {[%emt 00:08:15]} 18. dxe6 {[%clk
00:55:31]} {[%emt 00:00:14]} Rb8 {[%clk 00:56:24]} {[%emt 00:00:07]} 19. a4
{[%clk 00:47:46]} {[%emt 00:08:15]} Kh8 {[%clk 00:56:33]} {[%emt 00:00:21]} 20.
Bd5 {[%clk 00:47:01]} {[%emt 00:01:15]} Nc7 {[%clk 00:55:49]} {[%emt 00:01:14]}
21. a5 {[%clk 00:40:23]} {[%emt 00:07:08]} Nxe6 {[%clk 00:55:03]} {[%emt
00:01:16]} 22. axb6 {[%clk 00:39:35]} {[%emt 00:01:19]} axb6 {[%clk 00:54:03]}
{[%emt 00:01:29]} 23. Ra7 {[%clk 00:26:46]} {[%emt 00:13:18]} Nc7 {[%clk
00:54:00]} {[%emt 00:00:34]} 24. Bg2 {[%clk 00:23:58]} {[%emt 00:03:18]}
1/2-1/2